[Event "Titled Tuesday Blitz May 31 Late 2022"]
[White "Bettalli, Francesco"]
[Black "Darini, Pouria"]
[WhiteFideId "2816453"]
[BlackFideId "12502200"]
[WhiteElo "2216"]
[BlackElo "2483"]
[Result "1/2-1/2"]
[Round "07"]
[TimeControl "180+1"]
[Date "2022.05.31"]
[WhiteClock "0:01:54"]
[BlackClock "0:00:29"]

1. d4 {[%clk 0:03:00]}  Nf6 {[%clk 0:02:59]} 2. Nc3 {[%clk 0:02:58]}  d5 {[%clk 0:02:59]} 3. Bf4 {[%clk 0:02:56]}  a6 {[%clk 0:02:52]} 4. e3 {[%clk 0:02:54]}  Bf5 {[%clk 0:02:51]} 5. f3 {[%clk 0:02:51]}  c5 {[%clk 0:02:50]} 6. g4 {[%clk 0:02:50]}  cxd4 {[%clk 0:02:49]} 7. exd4 {[%clk 0:02:48]}  Bg6 {[%clk 0:02:49]} 8. h4 {[%clk 0:02:48]}  h6 {[%clk 0:02:50]} 9. Bd3 {[%clk 0:02:45]}  Bxd3 {[%clk 0:02:50]} 10. Qxd3 {[%clk 0:02:46]}  Nc6 {[%clk 0:02:51]} 11. Nge2 {[%clk 0:02:44]}  e6 {[%clk 0:02:49]} 12. O-O-O {[%clk 0:02:42]}  Bd6 {[%clk 0:02:48]} 13. Kb1 {[%clk 0:02:41]}  Bxf4 {[%clk 0:02:39]} 14. Nxf4 {[%clk 0:02:41]}  Qd6 {[%clk 0:02:40]} 15. Qe3 {[%clk 0:02:40]}  O-O-O {[%clk 0:02:38]} 16. Nd3 {[%clk 0:02:40]}  Nd7 {[%clk 0:02:36]} 17. f4 {[%clk 0:02:38]}  h5 {[%clk 0:02:27]} 18. g5 {[%clk 0:02:38]}  Ne7 {[%clk 0:02:27]} 19. Ne5 {[%clk 0:02:36]}  Nf5 {[%clk 0:02:27]} 20. Qd3 {[%clk 0:02:34]}  Nxe5 {[%clk 0:02:27]} 21. dxe5 {[%clk 0:02:31]}  Qb4 {[%clk 0:02:26]} 22. Ne2 {[%clk 0:02:31]}  g6 {[%clk 0:02:20]} 23. Nd4 {[%clk 0:02:30]}  Nxd4 {[%clk 0:02:13]} 24. Qxd4 {[%clk 0:02:31]}  Qxd4 {[%clk 0:02:14]} 25. Rxd4 {[%clk 0:02:30]}  Rd7 {[%clk 0:02:03]} 26. Rhd1 {[%clk 0:02:30]}  Rc7 {[%clk 0:02:01]} 27. c3 {[%clk 0:02:27]}  b6 {[%clk 0:02:00]} 28. Kc2 {[%clk 0:02:26]}  Kb7 {[%clk 0:02:00]} 29. Kd3 {[%clk 0:02:22]}  Rhc8 {[%clk 0:02:01]} 30. Rd2 {[%clk 0:02:20]}  a5 {[%clk 0:02:00]} 31. Kc2 {[%clk 0:02:17]}  Ka6 {[%clk 0:01:59]} 32. Kb3 {[%clk 0:02:17]}  Rc5 {[%clk 0:01:54]} 33. a4 {[%clk 0:02:17]}  Kb7 {[%clk 0:01:54]} 34. R2d3 {[%clk 0:02:13]}  R8c7 {[%clk 0:01:54]} 35. Kc2 {[%clk 0:02:12]}  Ka6 {[%clk 0:01:52]} 36. Kb3 {[%clk 0:02:11]}  Rc4 {[%clk 0:01:51]} 37. Kc2 {[%clk 0:02:10]}  b5 {[%clk 0:01:45]} 38. axb5+ {[%clk 0:02:10]}  Kxb5 {[%clk 0:01:46]} 39. b3 {[%clk 0:02:05]}  Rxd4 {[%clk 0:01:28]} 40. Rxd4 {[%clk 0:02:06]}  Ra7 {[%clk 0:01:29]} 41. Kb2 {[%clk 0:02:04]}  Ra6 {[%clk 0:01:22]} 42. Ka3 {[%clk 0:02:02]}  Rc6 {[%clk 0:01:22]} 43. Kb2 {[%clk 0:02:03]}  Rc7 {[%clk 0:01:23]} 44. Ra4 {[%clk 0:02:01]}  Rd7 {[%clk 0:01:21]} 45. Rd4 {[%clk 0:02:01]}  Rd8 {[%clk 0:01:18]} 46. Ka3 {[%clk 0:02:01]}  Rc8 {[%clk 0:01:15]} 47. Kb2 {[%clk 0:02:01]}  Ra8 {[%clk 0:01:15]} 48. Ka3 {[%clk 0:01:59]}  Ra7 {[%clk 0:01:13]} 49. Kb2 {[%clk 0:01:59]}  Rc7 {[%clk 0:01:07]} 50. Ra4 {[%clk 0:01:59]}  Rc6 {[%clk 0:00:57]} 51. Rd4 {[%clk 0:01:58]}  Kb6 {[%clk 0:00:55]} 52. Ra4 {[%clk 0:01:58]}  Rc5 {[%clk 0:00:55]} 53. Rd4 {[%clk 0:01:58]}  Rb5 {[%clk 0:00:55]} 54. Ka3 {[%clk 0:01:59]}  Kc6 {[%clk 0:00:55]} 55. Kb2 {[%clk 0:01:58]}  Rc5 {[%clk 0:00:55]} 56. Ra4 {[%clk 0:01:57]}  Kb5 {[%clk 0:00:54]} 57. Rd4 {[%clk 0:01:57]}  Rc8 {[%clk 0:00:52]} 58. Ra4 {[%clk 0:01:57]}  Ra8 {[%clk 0:00:51]} 59. Rd4 {[%clk 0:01:56]}  Ra6 {[%clk 0:00:38]} 60. Ra4 {[%clk 0:01:55]}  Rb6 {[%clk 0:00:31]} 61. Rd4 {[%clk 0:01:55]}  Rb8 {[%clk 0:00:31]} 62. Ka3 {[%clk 0:01:54]}  Rc8 {[%clk 0:00:30]} 63. Kb2 {[%clk 0:01:54]}  Rc7 {[%clk 0:00:29]} 1/2-1/2


[Site "https://www.chess.com"]

[Event "Titled Tuesday Blitz May 31 Late 2022"]
[White "Blackman, Justin"]
[Black "Karttunen, Mika"]
[WhiteFideId "11100516"]
[BlackFideId "502081"]
[WhiteElo "2112"]
[BlackElo "2343"]
[Result "1/2-1/2"]
[Round "07"]
[TimeControl "180+1"]
[Date "2022.06.01"]
[WhiteClock "0:00:36"]
[BlackClock "0:00:14"]

1. e4 {[%clk 0:03:00]}  e5 {[%clk 0:02:56]} 2. Nf3 {[%clk 0:03:00]}  Nc6 {[%clk 0:02:55]} 3. Bb5 {[%clk 0:02:55]}  a6 {[%clk 0:02:54]} 4. Ba4 {[%clk 0:02:52]}  Nf6 {[%clk 0:02:54]} 5. Qe2 {[%clk 0:02:52]}  b5 {[%clk 0:02:47]} 6. Bb3 {[%clk 0:02:52]}  Be7 {[%clk 0:02:47]} 7. O-O {[%clk 0:02:51]}  O-O {[%clk 0:02:47]} 8. a4 {[%clk 0:02:52]}  b4 {[%clk 0:02:47]} 9. a5 {[%clk 0:02:48]}  d6 {[%clk 0:02:41]} 10. d3 {[%clk 0:02:48]}  Bg4 {[%clk 0:02:38]} 11. Be3 {[%clk 0:02:48]}  Nd4 {[%clk 0:02:36]} 12. Bxd4 {[%clk 0:02:48]}  exd4 {[%clk 0:02:35]} 13. Nbd2 {[%clk 0:02:47]}  c5 {[%clk 0:02:33]} 14. h3 {[%clk 0:02:47]}  Bd7 {[%clk 0:02:27]} 15. e5 {[%clk 0:02:27]}  dxe5 {[%clk 0:02:20]} 16. Nxe5 {[%clk 0:02:25]}  Bb5 {[%clk 0:02:07]} 17. Rfe1 {[%clk 0:02:24]}  Ra7 {[%clk 0:02:06]} 18. Ndc4 {[%clk 0:02:16]}  Nd5 {[%clk 0:02:02]} 19. Qf3 {[%clk 0:02:12]}  Bf6 {[%clk 0:01:47]} 20. Ng4 {[%clk 0:02:07]}  Bg5 {[%clk 0:01:40]} 21. g3 {[%clk 0:02:03]}  h5 {[%clk 0:01:36]} 22. Nge5 {[%clk 0:01:58]}  g6 {[%clk 0:01:34]} 23. h4 {[%clk 0:01:57]}  Bh6 {[%clk 0:01:32]} 24. Nb6 {[%clk 0:01:55]}  Nxb6 {[%clk 0:01:27]} 25. axb6 {[%clk 0:01:56]}  Qxb6 {[%clk 0:01:27]} 26. Qd5 {[%clk 0:01:30]}  Kh7 {[%clk 0:00:49]} 27. Nc4 {[%clk 0:01:18]}  Bxc4 {[%clk 0:00:47]} 28. Bxc4 {[%clk 0:01:18]}  Bg7 {[%clk 0:00:43]} 29. b3 {[%clk 0:01:17]}  a5 {[%clk 0:00:42]} 30. Re4 {[%clk 0:01:15]}  Bf6 {[%clk 0:00:31]} 31. Re2 {[%clk 0:01:08]}  Rd8 {[%clk 0:00:30]} 32. Qf3 {[%clk 0:01:08]}  Kg7 {[%clk 0:00:30]} 33. Rae1 {[%clk 0:01:07]}  Qd6 {[%clk 0:00:28]} 34. Re8 {[%clk 0:01:05]}  Rxe8 {[%clk 0:00:25]} 35. Rxe8 {[%clk 0:01:05]}  Re7 {[%clk 0:00:25]} 36. Ra8 {[%clk 0:01:01]}  Qc7 {[%clk 0:00:20]} 37. Qd5 {[%clk 0:00:57]}  Re5 {[%clk 0:00:20]} 38. Qf3 {[%clk 0:00:52]}  Rf5 {[%clk 0:00:20]} 39. Qe4 {[%clk 0:00:51]}  Re5 {[%clk 0:00:20]} 40. Qf3 {[%clk 0:00:51]}  Re7 {[%clk 0:00:17]} 41. Ra6 {[%clk 0:00:50]}  Qe5 {[%clk 0:00:16]} 42. Kg2 {[%clk 0:00:48]}  Rc7 {[%clk 0:00:15]} 43. Rxa5 {[%clk 0:00:45]}  Re7 {[%clk 0:00:15]} 44. Ra6 {[%clk 0:00:46]}  Rc7 {[%clk 0:00:15]} 45. Rb6 {[%clk 0:00:45]}  Re7 {[%clk 0:00:15]} 46. Ra6 {[%clk 0:00:44]}  Rc7 {[%clk 0:00:15]} 47. Rc6 {[%clk 0:00:36]}  Rxc6 {[%clk 0:00:15]} 48. Qxc6 {[%clk 0:00:36]}  Qe7 {[%clk 0:00:15]} 49. Qd5 {[%clk 0:00:36]}  Be5 {[%clk 0:00:15]} 50. Kf3 {[%clk 0:00:35]}  Bd6 {[%clk 0:00:15]} 51. Qe4 {[%clk 0:00:35]}  Qf6+ {[%clk 0:00:16]} 52. Kg2 {[%clk 0:00:35]}  Qe5 {[%clk 0:00:13]} 53. Qxe5+ {[%clk 0:00:35]}  Bxe5 {[%clk 0:00:13]} 54. Kf3 {[%clk 0:00:36]}  f5 {[%clk 0:00:14]} 1/2-1/2


[Site "https://www.chess.com"]

[Event "Titled Tuesday Blitz May 31 Late 2022"]
[White "Christiansen, Johan-Sebastian"]
[Black "Bluebaum, Matthias"]
[WhiteFideId "1512668"]
[BlackFideId "24651516"]
[WhiteElo "2513"]
[BlackElo "2556"]
[Result "1/2-1/2"]
[Round "07"]
[TimeControl "180+1"]
[Date "2022.05.31"]
[WhiteClock "0:00:21"]
[BlackClock "0:00:46"]

1. e4 {[%clk 0:03:00]}  e5 {[%clk 0:03:00]} 2. Nf3 {[%clk 0:02:58]}  Nf6 {[%clk 0:03:00]} 3. Nc3 {[%clk 0:02:59]}  Nc6 {[%clk 0:03:00]} 4. a3 {[%clk 0:02:59]}  d5 {[%clk 0:02:58]} 5. Bb5 {[%clk 0:02:59]}  d4 {[%clk 0:02:48]} 6. Ne2 {[%clk 0:02:59]}  Bd6 {[%clk 0:02:48]} 7. c3 {[%clk 0:03:00]}  O-O {[%clk 0:02:20]} 8. cxd4 {[%clk 0:02:29]}  Nxd4 {[%clk 0:02:18]} 9. Nexd4 {[%clk 0:02:29]}  exd4 {[%clk 0:02:19]} 10. d3 {[%clk 0:02:29]}  c5 {[%clk 0:02:04]} 11. Bc4 {[%clk 0:02:23]}  b5 {[%clk 0:02:02]} 12. Ba2 {[%clk 0:02:22]}  Bb7 {[%clk 0:01:57]} 13. O-O {[%clk 0:02:18]}  Nd7 {[%clk 0:01:55]} 14. Bg5 {[%clk 0:02:16]}  Qb6 {[%clk 0:01:49]} 15. Rc1 {[%clk 0:02:15]}  Rae8 {[%clk 0:01:48]} 16. Re1 {[%clk 0:02:14]}  Kh8 {[%clk 0:01:47]} 17. Bh4 {[%clk 0:02:07]}  Ne5 {[%clk 0:01:21]} 18. Nxe5 {[%clk 0:01:49]}  Bxe5 {[%clk 0:01:22]} 19. Bg3 {[%clk 0:01:43]}  Bxg3 {[%clk 0:01:20]} 20. hxg3 {[%clk 0:01:44]}  c4 {[%clk 0:01:10]} 21. dxc4 {[%clk 0:01:41]}  bxc4 {[%clk 0:01:11]} 22. Rxc4 {[%clk 0:01:38]}  Qxb2 {[%clk 0:01:04]} 23. Re2 {[%clk 0:01:08]}  Qxa3 {[%clk 0:01:05]} 24. Rxd4 {[%clk 0:01:07]}  Rxe4 {[%clk 0:00:52]} 25. Rexe4 {[%clk 0:00:50]}  Bxe4 {[%clk 0:00:53]} 26. Rxe4 {[%clk 0:00:23]}  Qxa2 {[%clk 0:00:52]} 27. Ra4 {[%clk 0:00:24]}  Qe6 {[%clk 0:00:46]} 28. Rxa7 {[%clk 0:00:24]}  h6 {[%clk 0:00:46]} 29. Ra3 {[%clk 0:00:21]} 1/2-1/2


[Site "https://www.chess.com"]

[Event "Titled Tuesday Blitz May 31 Late 2022"]
[White "Cruz Mendez, Jean Marco"]
[Black "Proudian, Armen"]
[WhiteFideId "3526402"]
[BlackFideId "2130734"]
[WhiteElo "2064"]
[BlackElo "2380"]
[Result "0-1"]
[Round "07"]
[TimeControl "180+1"]
[Date "2022.06.01"]
[WhiteClock "0:00:25"]
[BlackClock "0:00:04"]

1. Nf3 {[%clk 0:02:59]}  Nf6 {[%clk 0:02:59]} 2. c4 {[%clk 0:03:00]}  e6 {[%clk 0:03:00]} 3. Nc3 {[%clk 0:03:00]}  d5 {[%clk 0:02:59]} 4. d4 {[%clk 0:02:59]}  Bb4 {[%clk 0:02:59]} 5. Qa4+ {[%clk 0:02:58]}  Nc6 {[%clk 0:02:59]} 6. e3 {[%clk 0:02:55]}  O-O {[%clk 0:02:59]} 7. Bd2 {[%clk 0:02:55]}  Re8 {[%clk 0:02:57]} 8. Be2 {[%clk 0:02:53]}  a6 {[%clk 0:02:57]} 9. cxd5 {[%clk 0:02:49]}  exd5 {[%clk 0:02:57]} 10. O-O {[%clk 0:02:48]}  Bd6 {[%clk 0:02:48]} 11. Qc2 {[%clk 0:02:47]}  Ne7 {[%clk 0:02:46]} 12. Bd3 {[%clk 0:02:45]}  Ng6 {[%clk 0:02:43]} 13. h3 {[%clk 0:02:40]}  c6 {[%clk 0:02:41]} 14. Rab1 {[%clk 0:02:37]}  a5 {[%clk 0:02:35]} 15. a3 {[%clk 0:02:35]}  Be6 {[%clk 0:02:12]} 16. b4 {[%clk 0:02:33]}  axb4 {[%clk 0:02:13]} 17. axb4 {[%clk 0:02:34]}  b5 {[%clk 0:02:13]} 18. Na2 {[%clk 0:02:28]}  Bd7 {[%clk 0:02:09]} 19. Nc1 {[%clk 0:02:28]}  Ne4 {[%clk 0:02:04]} 20. Be1 {[%clk 0:02:25]}  Qf6 {[%clk 0:02:01]} 21. Nb3 {[%clk 0:02:23]}  Bxh3 {[%clk 0:01:59]} 22. Rc1 {[%clk 0:02:13]}  Bd7 {[%clk 0:01:34]} 23. Nc5 {[%clk 0:02:10]}  Bxc5 {[%clk 0:01:33]} 24. dxc5 {[%clk 0:02:11]}  Ne5 {[%clk 0:01:27]} 25. Nd4 {[%clk 0:02:07]}  Ng4 {[%clk 0:01:16]} 26. Bxe4 {[%clk 0:01:39]}  Rxe4 {[%clk 0:01:06]} 27. Bc3 {[%clk 0:01:35]}  Rxd4 {[%clk 0:00:46]} 28. Bxd4 {[%clk 0:01:31]}  Qh4 {[%clk 0:00:46]} 29. Rfd1 {[%clk 0:01:27]}  Qh2+ {[%clk 0:00:46]} 30. Kf1 {[%clk 0:01:28]}  Qh1+ {[%clk 0:00:46]} 31. Ke2 {[%clk 0:01:28]}  Qxg2 {[%clk 0:00:46]} 32. Rf1 {[%clk 0:01:23]}  Nh2 {[%clk 0:00:37]} 33. Rg1 {[%clk 0:01:19]}  Bg4+ {[%clk 0:00:35]} 34. Kd3 {[%clk 0:01:17]}  Bf5+ {[%clk 0:00:33]} 35. Kc3 {[%clk 0:01:17]}  Qf3 {[%clk 0:00:20]} 36. Rxg7+ {[%clk 0:01:16]}  Kf8 {[%clk 0:00:20]} 37. Qd2 {[%clk 0:01:07]}  Qe4 {[%clk 0:00:16]} 38. Rcg1 {[%clk 0:00:59]}  Nf3 {[%clk 0:00:10]} 39. Bf6 {[%clk 0:00:56]}  Ra3+ {[%clk 0:00:03]} 40. Kb2 {[%clk 0:00:56]}  Ke8 {[%clk 0:00:02]} 41. Rg8+ {[%clk 0:00:54]}  Kd7 {[%clk 0:00:02]} 42. Rd8+ {[%clk 0:00:55]}  Kc7 {[%clk 0:00:03]} 43. Kxa3 {[%clk 0:00:25]}  Nxd2 {[%clk 0:00:03]} 44. Rgg8 {[%clk 0:00:26]}  Qd3+ {[%clk 0:00:03]} 45. Ka2 {[%clk 0:00:25]}  Qb3+ {[%clk 0:00:03]} 46. Ka1 {[%clk 0:00:25]}  Qb1# {[%clk 0:00:04]} 0-1


[Site "https://www.chess.com"]

[Event "Titled Tuesday Blitz May 31 Late 2022"]
[White "Derraugh, Geordie"]
[Black "Hasangatin, Ramil"]
[WhiteFideId "2603950"]
[BlackFideId "4122160"]
[WhiteElo "2116"]
[BlackElo "2399"]
[Result "1-0"]
[Round "07"]
[TimeControl "180+1"]
[Date "2022.06.01"]
[WhiteClock "0:00:05"]
[BlackClock "0:00:01"]

1. e4 {[%clk 0:02:55]}  d5 {[%clk 0:02:59]} 2. exd5 {[%clk 0:02:54]}  Qxd5 {[%clk 0:03:00]} 3. Nf3 {[%clk 0:02:55]}  Bg4 {[%clk 0:02:59]} 4. Be2 {[%clk 0:02:54]}  Nc6 {[%clk 0:03:00]} 5. d4 {[%clk 0:02:54]}  O-O-O {[%clk 0:02:59]} 6. Be3 {[%clk 0:02:54]}  e5 {[%clk 0:03:00]} 7. c4 {[%clk 0:02:46]}  Qa5+ {[%clk 0:02:59]} 8. Bd2 {[%clk 0:02:36]}  Qa6 {[%clk 0:02:59]} 9. d5 {[%clk 0:02:32]}  Bxf3 {[%clk 0:02:58]} 10. Bxf3 {[%clk 0:02:31]}  Nd4 {[%clk 0:02:59]} 11. b3 {[%clk 0:02:27]}  Qg6 {[%clk 0:02:59]} 12. O-O {[%clk 0:02:16]}  f5 {[%clk 0:02:56]} 13. Bh5 {[%clk 0:02:08]}  Qf6 {[%clk 0:02:46]} 14. Nc3 {[%clk 0:02:08]}  g6 {[%clk 0:02:40]} 15. Be2 {[%clk 0:02:08]}  Bg7 {[%clk 0:02:40]} 16. Re1 {[%clk 0:02:07]}  e4 {[%clk 0:02:40]} 17. Rc1 {[%clk 0:01:54]}  Ne7 {[%clk 0:02:36]} 18. Be3 {[%clk 0:01:51]}  Kb8 {[%clk 0:02:35]} 19. Bf1 {[%clk 0:01:36]}  c5 {[%clk 0:02:33]} 20. b4 {[%clk 0:01:13]}  cxb4 {[%clk 0:02:32]} 21. Na4 {[%clk 0:01:09]}  f4 {[%clk 0:02:24]} 22. Bxd4 {[%clk 0:01:07]}  Qxd4 {[%clk 0:02:24]} 23. Qxd4 {[%clk 0:01:07]}  Bxd4 {[%clk 0:02:25]} 24. Rxe4 {[%clk 0:01:07]}  Nf5 {[%clk 0:02:25]} 25. Rxf4 {[%clk 0:01:05]}  Rhe8 {[%clk 0:02:18]} 26. Bd3 {[%clk 0:00:32]}  Be5 {[%clk 0:02:15]} 27. Re4 {[%clk 0:00:32]}  Nd6 {[%clk 0:02:15]} 28. Ree1 {[%clk 0:00:32]}  Bf4 {[%clk 0:02:10]} 29. Rcd1 {[%clk 0:00:31]}  Nf5 {[%clk 0:01:53]} 30. Rxe8 {[%clk 0:00:26]}  Rxe8 {[%clk 0:01:52]} 31. Nc5 {[%clk 0:00:26]}  Bd6 {[%clk 0:01:40]} 32. Ne6 {[%clk 0:00:24]}  b6 {[%clk 0:01:40]} 33. Bxf5 {[%clk 0:00:20]}  gxf5 {[%clk 0:01:40]} 34. f4 {[%clk 0:00:16]}  Kb7 {[%clk 0:01:34]} 35. Kf2 {[%clk 0:00:15]}  a5 {[%clk 0:01:33]} 36. Ke3 {[%clk 0:00:15]}  a4 {[%clk 0:01:24]} 37. g3 {[%clk 0:00:15]}  Ka6 {[%clk 0:01:19]} 38. Kd4 {[%clk 0:00:15]}  Ka5 {[%clk 0:01:20]} 39. Rb1 {[%clk 0:00:16]}  Rc8 {[%clk 0:01:16]} 40. Ng7 {[%clk 0:00:13]}  Bc5+ {[%clk 0:01:15]} 41. Kd3 {[%clk 0:00:13]}  Rf8 {[%clk 0:01:14]} 42. Re1 {[%clk 0:00:12]}  b3 {[%clk 0:01:11]} 43. axb3 {[%clk 0:00:12]}  a3 {[%clk 0:01:12]} 44. Ne6 {[%clk 0:00:10]}  Re8 {[%clk 0:01:09]} 45. Ra1 {[%clk 0:00:07]}  Kb4 {[%clk 0:01:09]} 46. Kc2 {[%clk 0:00:08]}  h5 {[%clk 0:01:03]} 47. Rd1 {[%clk 0:00:07]}  Ra8 {[%clk 0:01:02]} 48. Ra1 {[%clk 0:00:04]}  Bd6 {[%clk 0:00:59]} 49. Nd4 {[%clk 0:00:03]}  Re8 {[%clk 0:00:59]} 50. Nc6+ {[%clk 0:00:03]}  Kc5 {[%clk 0:00:57]} 51. Rxa3 {[%clk 0:00:02]}  Bf8 {[%clk 0:00:46]} 52. b4+ {[%clk 0:00:02]}  Kxc4 {[%clk 0:00:45]} 53. Rd3 {[%clk 0:00:03]}  Bd6 {[%clk 0:00:18]} 54. Kd2 {[%clk 0:00:03]}  Ra8 {[%clk 0:00:15]} 55. Rc3+ {[%clk 0:00:02]}  Kxd5 {[%clk 0:00:14]} 56. b5 {[%clk 0:00:03]}  Ra2+ {[%clk 0:00:13]} 57. Ke3 {[%clk 0:00:03]}  Bc5+ {[%clk 0:00:13]} 58. Kd3 {[%clk 0:00:02]}  Rxh2 {[%clk 0:00:12]} 59. Rc2 {[%clk 0:00:01]}  Rh3 {[%clk 0:00:11]} 60. Rg2 {[%clk 0:00:02]}  Rh1 {[%clk 0:00:10]} 61. Ne5 {[%clk 0:00:02]}  Rd1+ {[%clk 0:00:10]} 62. Ke2 {[%clk 0:00:03]}  Rb1 {[%clk 0:00:10]} 63. Nf7 {[%clk 0:00:03]}  Rxb5 {[%clk 0:00:10]} 64. Kf3 {[%clk 0:00:04]}  Rb3+ {[%clk 0:00:10]} 65. Ke2 {[%clk 0:00:04]}  Re3+ {[%clk 0:00:09]} 66. Kf1 {[%clk 0:00:04]}  b5 {[%clk 0:00:10]} 67. Rd2+ {[%clk 0:00:04]}  Kc4 {[%clk 0:00:08]} 68. Ne5+ {[%clk 0:00:05]}  Kc3 {[%clk 0:00:08]} 69. Rd5 {[%clk 0:00:05]}  Bd4 {[%clk 0:00:07]} 70. Rxb5 {[%clk 0:00:05]}  Rxg3 {[%clk 0:00:06]} 71. Nc6 {[%clk 0:00:03]}  Be3 {[%clk 0:00:05]} 72. Ke2 {[%clk 0:00:02]}  Bxf4 {[%clk 0:00:05]} 73. Rxf5 {[%clk 0:00:03]}  Bd6 {[%clk 0:00:02]} 74. Rxh5 {[%clk 0:00:03]}  Kc4 {[%clk 0:00:02]} 75. Nd8 {[%clk 0:00:03]}  Kc3 {[%clk 0:00:02]} 76. Ne6 {[%clk 0:00:03]}  Bb4 {[%clk 0:00:02]} 77. Ng5 {[%clk 0:00:03]}  Rg2+ {[%clk 0:00:03]} 78. Kf3 {[%clk 0:00:04]}  Ra2 {[%clk 0:00:03]} 79. Ne4+ {[%clk 0:00:04]}  Kd4 {[%clk 0:00:03]} 80. Rh4 {[%clk 0:00:03]}  Be7 {[%clk 0:00:02]} 81. Rh7 {[%clk 0:00:03]}  Bb4 {[%clk 0:00:01]} 82. Rd7+ {[%clk 0:00:03]}  Kc4 {[%clk 0:00:02]} 83. Rc7+ {[%clk 0:00:04]}  Kb5 {[%clk 0:00:01]} 84. Kf4 {[%clk 0:00:04]}  Ra1 {[%clk 0:00:01]} 85. Kf5 {[%clk 0:00:05]} 1-0


[Site "https://www.chess.com"]

[Event "Titled Tuesday Blitz May 31 Late 2022"]
[White "Fedoseev, Vladimir"]
[Black "Shimanov, Aleksandr"]
[WhiteFideId "24130737"]
[BlackFideId "4198603"]
[WhiteElo "2726"]
[BlackElo "2605"]
[Result "1-0"]
[Round "07"]
[TimeControl "180+1"]
[Date "2022.05.31"]
[WhiteClock "0:01:55"]
[BlackClock "0:00:38"]

1. d4 {[%clk 0:02:47]}  Nf6 {[%clk 0:02:58]} 2. Nf3 {[%clk 0:02:48]}  d5 {[%clk 0:02:57]} 3. Bf4 {[%clk 0:02:46]}  e6 {[%clk 0:02:47]} 4. e3 {[%clk 0:02:46]}  Bd6 {[%clk 0:02:47]} 5. Bg3 {[%clk 0:02:45]}  O-O {[%clk 0:02:46]} 6. c4 {[%clk 0:02:46]}  c5 {[%clk 0:02:42]} 7. Nc3 {[%clk 0:02:44]}  dxc4 {[%clk 0:02:35]} 8. Bxc4 {[%clk 0:02:42]}  Nc6 {[%clk 0:02:36]} 9. Ne5 {[%clk 0:02:28]}  Bxe5 {[%clk 0:01:04]} 10. dxe5 {[%clk 0:02:26]}  Qxd1+ {[%clk 0:01:04]} 11. Rxd1 {[%clk 0:02:26]}  Ng4 {[%clk 0:01:05]} 12. Bb5 {[%clk 0:02:23]}  Ngxe5 {[%clk 0:01:03]} 13. Na4 {[%clk 0:02:15]}  c4 {[%clk 0:00:57]} 14. O-O {[%clk 0:02:14]}  f6 {[%clk 0:00:48]} 15. h3 {[%clk 0:02:02]}  a6 {[%clk 0:00:36]} 16. Bxc6 {[%clk 0:02:01]}  Nxc6 {[%clk 0:00:37]} 17. Nb6 {[%clk 0:02:00]}  Ra7 {[%clk 0:00:38]} 18. Bd6 {[%clk 0:01:55]}  Re8 {[%clk 0:00:38]} 19. Bc5 {[%clk 0:01:55]} 1-0


[Site "https://www.chess.com"]

[Event "Titled Tuesday Blitz May 31 Late 2022"]
[White "Fier, Alexandr"]
[Black "Jovic, Stevan"]
[WhiteFideId "2107139"]
[BlackFideId "923206"]
[WhiteElo "2571"]
[BlackElo "2203"]
[Result "1-0"]
[Round "07"]
[TimeControl "180+1"]
[Date "2022.05.31"]
[WhiteClock "0:02:04"]
[BlackClock "0:01:27"]

1. b3 {[%clk 0:03:00]}  c6 {[%clk 0:03:00]} 2. Bb2 {[%clk 0:03:01]}  d5 {[%clk 0:03:00]} 3. c4 {[%clk 0:03:01]}  Bf5 {[%clk 0:02:59]} 4. e3 {[%clk 0:03:00]}  Nf6 {[%clk 0:02:59]} 5. Nf3 {[%clk 0:03:01]}  Nbd7 {[%clk 0:02:58]} 6. Nc3 {[%clk 0:03:01]}  e6 {[%clk 0:02:58]} 7. Be2 {[%clk 0:03:01]}  h6 {[%clk 0:02:58]} 8. h3 {[%clk 0:03:01]}  Bh7 {[%clk 0:02:58]} 9. g4 {[%clk 0:03:00]}  Nc5 {[%clk 0:02:54]} 10. d3 {[%clk 0:02:56]}  dxc4 {[%clk 0:02:52]} 11. dxc4 {[%clk 0:02:56]}  Nd3+ {[%clk 0:02:45]} 12. Bxd3 {[%clk 0:02:56]}  Bxd3 {[%clk 0:02:41]} 13. Ne5 {[%clk 0:02:55]}  Bh7 {[%clk 0:02:40]} 14. Qf3 {[%clk 0:02:55]}  Bb4 {[%clk 0:02:37]} 15. O-O {[%clk 0:02:40]}  Qa5 {[%clk 0:02:36]} 16. Ne2 {[%clk 0:02:35]}  Be4 {[%clk 0:02:36]} 17. Qg3 {[%clk 0:02:35]}  O-O {[%clk 0:02:27]} 18. f3 {[%clk 0:02:31]}  Bh7 {[%clk 0:02:22]} 19. h4 {[%clk 0:02:31]}  Bd6 {[%clk 0:02:16]} 20. Rfd1 {[%clk 0:02:14]}  Bc7 {[%clk 0:02:12]} 21. Bc3 {[%clk 0:02:10]}  Qb6 {[%clk 0:02:10]} 22. Bd4 {[%clk 0:02:07]}  c5 {[%clk 0:02:09]} 23. Bb2 {[%clk 0:02:05]}  Rad8 {[%clk 0:02:03]} 24. g5 {[%clk 0:02:06]}  Nh5 {[%clk 0:02:02]} 25. Qg4 {[%clk 0:02:06]}  Bxe5 {[%clk 0:01:40]} 26. Bxe5 {[%clk 0:02:07]}  Bg6 {[%clk 0:01:41]} 27. Kf2 {[%clk 0:02:05]}  hxg5 {[%clk 0:01:38]} 28. hxg5 {[%clk 0:02:04]}  Rxd1 {[%clk 0:01:35]} 29. Rxd1 {[%clk 0:02:04]}  Rd8 {[%clk 0:01:35]} 30. Rh1 {[%clk 0:02:04]}  Qa5 {[%clk 0:01:33]} 31. Rxh5 {[%clk 0:02:03]}  Bxh5 {[%clk 0:01:34]} 32. Qxh5 {[%clk 0:02:04]}  Qxa2 {[%clk 0:01:27]} 33. g6 {[%clk 0:02:03]}  fxg6 {[%clk 0:01:27]} 34. Qxg6 {[%clk 0:02:04]} 1-0


[Site "https://www.chess.com"]